Cogmind - Beta 11 @@@ ROGUE MODE // 2022.03.26 @ 01:42:38 Player: ZOT Result: Destroyed by P-70 Sage with High-powered Shock Rifle Performance ------------- Evolutions (5) 2500 Regions Visited (11) 2200 Robots Destroyed (47) 235 Value Destroyed (1336) 1336 Prototype IDs (6) 120 Alien Tech Used (0) 0 Bonus (1088) 1088 TOTAL SCORE: 7479 Bonus ------- High Alert Combat Kills 36 Follower Combat Kills 827 Entered DSFs 500 Friendly Fire -275 Cogmind --------- Core Integrity 0/1000 Matter 269/300 Energy 100/100 System Corruption 2% Temperature Cool (0) Movement Core (50) Location -5/Factory Parts ------- > --- POWER (3) -------- (None) > --- PROPULSION (4) --- (None) > --- UTILITY (8) ------ Targeting Computer > --- WEAPON (2) ------- (None) > --- INVENTORY (5) ---- Xenon Bombardment Thruster Improved Thermal Generator Splice Drone Bay (3/6) Minigun Peak State ------------ > --- POWER ------------ Light Ion Engine Makeshift Power Source Fission Core > --- PROPULSION ------- Xenon Bombardment Thruster Xenon Bombardment Thruster Xenon Bombardment Thruster Xenon Bombardment Thruster > --- UTILITY ---------- Improved Cryofiber Web Coolant Injector Advanced Weight Redist. System Improved Sensor Array Targeting Computer Improved Weapon Cycler Improved Transmission Jammer Improved Component Analysis Suite > --- WEAPON ----------- Tesla Rifle Improved Remote Datajack > --- INVENTORY -------- Xenon Bombardment Thruster Improved Thermal Generator Precision Energy Filter Splice Drone Bay Minigun [Rating: 74] Favorites ----------- Power Light Nuclear Core Engine Backup Power I Power Core Light Nuclear Core Propulsion Xenon Bombardment Thruster Treads Medium Treads Leg Carbon-fiber Leg Wheel Wheel Hover Unit Hover Unit Flight Unit Xenon Bombardment Thruster Utility Targeting Computer Device Improved Terrain Scanner Processor Targeting Computer Hackware Hacking Suite Protection Reflective Plating Weapon Backup Laser I Energy Gun Backup Laser I Energy Cannon Proton Cannon Ballistic Gun Minigun Special Weapon Improved Remote Datajack Build | -11 -10 -10 -9 -8 -8 -7 -7 -6 -6 -6 -5 ------- Run | Scr Mat Min Mat Mat Sto Fac DSF Fac Low Low Fac Slots Evolved 10 | . . . 2 2 . 2 . 2 . . 2 Power 2 | . . . 1 . . . . . . . 1 Propulsion 2 | . . . . . . 1 . . . . 1 Utility 6 | . . . 1 2 . 1 . 2 . . . Weapon . | . . . . . . . . . . . . Parts Attached 99 | 8 4 1 9 14 5 . 7 33 5 . 13 Power 15 | 1 . 1 1 . 1 . . 6 2 . 3 Engine 10 | 1 . . . . 1 . . 5 2 . 1 Core 5 | . . 1 1 . . . . 1 . . 2 Reactor . | . . . . . . . . . . . . Propulsion 33 | 3 3 . 7 4 2 . 2 10 . . 2 Treads 2 | . . . . . . . 2 . . . . Leg 4 | . . . . 2 . . . 2 . . . Wheel 6 | 3 . . 2 1 . . . . . . . Hover 15 | . 3 . 5 1 2 . . 4 . . . Flight 6 | . . . . . . . . 4 . . 2 Utility 32 | 2 1 . 1 5 2 . 2 12 2 . 5 Device 27 | 2 1 . 1 2 2 . 2 10 2 . 5 Storage . | . . . . . . . . . . . . Processor 2 | . . . . 2 . . . . . . . Hackware 2 | . . . . 1 . . . 1 . . . Protection 1 | . . . . . . . . 1 . . . Artifact . | . . . . . . . . . . . . Weapon 19 | 2 . . . 5 . . 3 5 1 . 3 Energy Gun 9 | 2 . . . 3 . . 1 2 . . 1 Energy Cannon 3 | . . . . . . . . 2 . . 1 Ballistic Gun 6 | . . . . 2 . . 2 1 1 . . Ballistic Cannon . | . . . . . . . . . . . . Launcher . | . . . . . . . . . . . . Special Weapon 1 | . . . . . . . . . . . 1 Impact Weapon . | . . . . . . . . . . . . Slashing Weapon . | . . . . . . . . . . . . Piercing Weapon . | . . . . . . . . . . . . Special Melee Weapon . | . . . . . . . . . . . . Unidentified Prototypes 2 | . . . . . . . . 2 . . . Parts Lost 52 | . . . 1 6 5 . 9 10 3 . 18 Power 11 | . . . . 1 2 . 1 2 . . 5 Propulsion 14 | . . . 1 3 2 . 1 3 . . 4 Utility 18 | . . . . 1 1 . 3 4 2 . 7 Weapon 9 | . . . . 1 . . 4 1 1 . 2 Highest Loss Streak 18 | . . . 1 2 4 . 9 5 3 . 18 To Critical Strikes 1 | . . . . . . . . . . . 1 Average Slot Usage (%) 82 | . 100 100 92 71 91 . 61 66 84 86 85 Engine 5 | . 14 5 . . 12 . 4 4 2 6 9 Core 4 | . . 8 15 7 . . . 1 6 6 4 Wheel 1 | . 23 . 8 . . . . . . . . Hover 10 | . 4 28 13 9 16 . . 7 . . . Flight 4 | . . . . . . . . . 20 20 20 Device 26 | . 28 28 33 21 17 . 14 25 36 33 36 Processor 8 | . . . . 9 18 . 15 12 6 6 5 Hackware 3 | . . . . 9 9 . 6 3 . . . Energy Gun 12 | . 28 28 22 9 17 . 10 1 9 6 1 Naked Turns . | . . . . . . . . . . . . Heaviest Build 40 | 10 10 10 17 13 12 10 12 40 25 25 33 Greatest Support 62 | 10 12 12 20 13 12 3 62 39 27 27 33 Greatest Overweight (x) 6 | . . . 2 4 3 3 3 6 . . 3 Average Overweight (x) . | . . . . . . 3 . . . . . Largest Inventory Capacity 5 | 5 5 5 5 5 5 5 5 5 5 5 5 Average Capacity 5 | 5 5 5 5 5 5 5 5 5 5 5 5 Most Carried 5 | 5 5 5 5 5 5 5 5 5 5 5 5 Average Carried 4 | 2 3 4 4 4 4 5 3 3 5 5 4 Final Capacity 5 | 5 5 5 5 5 5 5 5 5 5 5 5 Final Carried 5 | 3 5 5 5 4 5 5 4 5 5 5 4 Class Distribution -------------------- 37% | Scavenger-Mutant 25% | Mutant 17% | Infiltrator-Mutant 8% | Sprinter 8% | Commander-Mutant Dominant Class ---------------- Mutant | -10/Materials Scavenger-Mutant | -10/Mines Scavenger-Mutant | -9/Materials Scavenger-Mutant | -8/Materials Commander-Mutant | -8/Storage Commander-Mutant | -7/Factory Scavenger-Mutant | -7/DSF Infiltrator-Mutant | -6/Factory Infiltrator-Mutant | -6/Lower Caves Mutant | -6/Lower Caves Sprinter | -5/Factory Resources | -11 -10 -10 -9 -8 -8 -7 -7 -6 -6 -6 -5 ----------- Run | Scr Mat Min Mat Mat Sto Fac DSF Fac Low Low Fac Matter Collected 1013 | 257 43 30 50 109 115 . 43 145 160 . 61 Remotely . | . . . . . . . . . . . . Salvage Created 1140 | 18 49 35 89 218 27 . . 93 108 . 503 Parts 102 | 4 9 5 15 12 4 . . 5 7 . 41 Haulers Intercepted 2 | . . . . . . . . . . . 2 Recyclers Shooed 1 | . . . . . . . . 1 . . . Parts Field Recycled . | . . . . . . . . . . . . Retrieved Matter . | . . . . . . . . . . . . Parts Self-Destructed 7 | . . . . . . . . . 7 . . Prevented . | . . . . . . . . . . . . Kills | -11 -10 -10 -9 -8 -8 -7 -7 -6 -6 -6 -5 ------- Run | Scr Mat Min Mat Mat Sto Fac DSF Fac Low Low Fac Combat Hostiles Destroyed 27 | . 3 3 2 4 . . . 3 4 . 8 Guns 17 | . 3 3 2 4 . . . . 4 . 1 Cannons 2 | . . . . . . . . 1 . . 1 AOE 8 | . . . . . . . . 2 . . 6 Classes Destroyed 11 | 1 2 . 1 4 1 . . . . . 2 Worker 3 | . . . . 1 . . . . . . 2 Builder 5 | . . . . . 1 . . . . . 4 Tunneler 1 | 1 . . . . . . . . . . . Hauler 2 | . . . . . . . . . . . 2 Recycler 1 | . . . . . . . . . . . 1 Operator 2 | . . . 1 . . . . . . . 1 Watcher 5 | . 1 . 2 1 . . . . . . 1 Swarmer 19 | . 3 3 2 . . . . 1 4 . 6 Grunt 6 | . . . . 2 . . . 2 . . 2 Sentry 1 | . . . . 1 . . . . . . . Hunter 1 | . . . . 1 . . . . . . . Thug 1 | . . . . 1 . . . . . . . Best Kill Streak 17 | 1 4 3 2 2 1 . . 3 4 . 17 Combat Bots Only 7 | . 3 3 2 1 . . . 3 4 . 7 Max Kills in Single Turn 7 | 1 2 2 1 3 1 . . 1 1 . 7 Gunslinging 1 | . 1 . . . . . . . . . . Exploded 4 | . . . . . . . . 1 . . 4 Melee . | . . . . . . . . . . . . Uniques/NPCs Destroyed . | . . . . . . . . . . . . Combat | -11 -10 -10 -9 -8 -8 -7 -7 -6 -6 -6 -5 -------- Run | Scr Mat Min Mat Mat Sto Fac DSF Fac Low Low Fac Damage Taken 5774 | . 117 83 71 593 319 . 1175 1384 297 . 1735 Core 2286 | . 17 34 13 241 66 . 540 306 56 . 1013 Absorbed by Shields . | . . . . . . . . . . . . Regen/Repaired (Parts) 101 | . . . . . 101 . . . . . . Core Remaining (%) 66 | 100 . 79 96 . 44 . 22 . . 57 . Volleys Fired 121 | 1 5 6 12 42 5 . 4 9 12 . 25 Largest 2 | 2 2 2 2 2 2 . 1 1 2 . 1 Hottest 138 | 90 90 90 90 90 60 . 30 75 138 . 90 Shots Fired 152 | 2 10 12 23 44 10 . 4 9 13 . 25 Gun 130 | 2 10 12 23 44 10 . 4 1 13 . 11 Cannon 16 | . . . . . . . . 8 . . 8 Launcher . | . . . . . . . . . . . . Special 6 | . . . . . . . . . . . 6 Kinetic 10 | . . . . 6 . . 3 1 . . . Thermal 117 | 2 10 12 23 38 10 . 1 . 13 . 8 Explosive . | . . . . . . . . . . . . Electromagnetic 19 | . . . . . . . . 8 . . 11 Robot Hit Streak 10 | 1 3 5 4 6 7 . 10 3 7 . 3 Robot Miss Streak 5 | 1 2 2 4 5 . . 1 2 3 . 2 Penetration Max . | . . . . . . . . . . . . Secondary Targets 2 | . 1 1 . . . . . . . . . Max Gunslinging Chain 1 | . 1 1 . . . . . . . . . Shots Hit Robots 88 | 1 6 9 11 27 1 . 3 5 11 . 14 Core Hits 67 | 1 4 3 7 15 1 . 1 6 4 . 25 Critical Kills . | . . . . . . . . . . . . Critical Parts Destroyed . | . . . . . . . . . . . . Critical Strikes 1 | . . . 1 . . . . . . . . Burn 1 | . . . 1 . . . . . . . . Melee Attacks . | . . . . . . . . . . . . Impact . | . . . . . . . . . . . . Slashing . | . . . . . . . . . . . . Piercing . | . . . . . . . . . . . . Sneak Attacks . | . . . . . . . . . . . . Combat Hostiles . | . . . . . . . . . . . . Follow-up Attacks . | . . . . . . . . . . . . Damage Inflicted 4009 | 11 68 110 141 728 19 . 52 655 207 . 2018 Guns 1155 | 11 68 110 141 421 19 . 52 . 207 . 126 Cannons 345 | . . . . . . . . 168 . . 177 Explosions 2491 | . . . . 307 . . . 469 . . 1715 Melee . | . . . . . . . . . . . . Ramming 18 | . . . . . . . . 18 . . . Kinetic 133 | . . . . 90 . . 43 . . . . Thermal 1659 | 11 68 110 141 638 19 . 9 . 207 . 456 Explosive 1905 | . . . . . . . . 469 . . 1436 Electromagnetic 294 | . . . . . . . . 168 . . 126 Impact . | . . . . . . . . . . . . Slashing . | . . . . . . . . . . . . Piercing . | . . . . . . . . . . . . Highest Corruption 2 | . . . . . . . . . . . 2 Average Corruption 1 | . . . . . . . . . . . 1 Corruption Purged . | . . . . . . . . . . . . Corruption Blocked . | . . . . . . . . . . . . Overload Shots . | . . . . . . . . . . . . Overflow Damage 288 | . . . . 25 . . . 111 . . 152 Projectiles 11 | . . . . . . . . . . . 11 Explosions 277 | . . . . 25 . . . 111 . . 141 Melee . | . . . . . . . . . . . . Knockbacks 1 | . . . . . . . . 1 . . . Impact 1 | . . . . . . . . 1 . . . Kinetic . | . . . . . . . . . . . . Secondary . | . . . . . . . . . . . . Self-Inflicted Damage 379 | . . . . 128 . . . 150 . . 101 Shots 5 | . . . . 2 . . . 2 . . 1 Rammed 3 | . . . . . . . . 3 . . . Targets Rammed 3 | . . . . . . . . 3 . . . Kicked . | . . . . . . . . . . . . Crushed . | . . . . . . . . . . . . Highest Temperature 203 | 30 90 180 96 203 . . . 168 181 . 199 Average Temperature 96 | 17 37 78 33 84 . . . 74 74 . 130 Received Heat Transfer 954 | . 36 9 18 153 162 . 117 432 9 . 18 Siege Activations . | . . . . . . . . . . . . Robots Corrupted . | . . . . . . . . . . . . Combat Hostiles . | . . . . . . . . . . . . Parts Fried . | . . . . . . . . . . . . Impact Corruptions . | . . . . . . . . . . . . Robots Melted . | . . . . . . . . . . . . Combat Hostiles . | . . . . . . . . . . . . Parts Melted 4 | . . 2 . 1 . . . . 1 . . Heat Transferred 2692 | 25 174 298 434 858 74 . 37 . 407 . 385 Parts Sabotaged . | . . . . . . . . . . . . Parts Stolen . | . . . . . . . . . . . . Parts Stripped . | . . . . . . . . . . . . Power Chain Reactions . | . . . . . . . . . . . . Missiles Intercepted . | . . . . . . . . . . . . Alert | -11 -10 -10 -9 -8 -8 -7 -7 -6 -6 -6 -5 ------- Run | Scr Mat Min Mat Mat Sto Fac DSF Fac Low Low Fac Peak Influence 972 | 5 86 232 302 322 554 186 178 402 . . 972 Initial 186 | . 3 33 90 42 135 186 133 46 . . 133 Average 228 | 1 31 151 233 199 403 186 135 167 . . 315 Maximum Alert Level 3 | . . 1 1 1 2 . . 2 . . 3 Low Security (%) 50 | 100 100 91 34 35 24 100 100 55 . . 28 Level 1 31 | . . 8 65 64 8 . . 29 . . 52 Level 2 16 | . . . . . 67 . . 14 . . 5 Level 3 1 | . . . . . . . . . . . 13 Level 4 . | . . . . . . . . . . . . Level 5 . | . . . . . . . . . . . . High Security . | . . . . . . . . . . . . Max Security . | . . . . . . . . . . . . Squads Dispatched 16 | . 1 . 1 1 4 . 2 3 . . 4 Investigation 3 | . . . 1 . . . . 1 . . 1 Extermination 2 | . . . . . . . . 1 . . 1 Reinforcement 8 | . 1 . . 1 1 . 2 1 . . 2 Assault . | . . . . . . . . . . . . Garrison 3 | . . . . . 3 . . . . . . Intercept . | . . . . . . . . . . . . Searches Triggered . | . . . . . . . . . . . . Construction Impeded 2 | . . . . . 1 . . . . . 1 Haulers Reinforced 1 | . . . . . . . . . . . 1 Active Scanning Responses . | . . . . . . . . . . . . Cargo Convoy Interrupts . | . . . . . . . . . . . . Stealth | -11 -10 -10 -9 -8 -8 -7 -7 -6 -6 -6 -5 --------- Run | Scr Mat Min Mat Mat Sto Fac DSF Fac Low Low Fac Distress Signals 6 | . 1 . . 3 2 . . . . . . Communications Jammed 1 | . . . . . . . . . . . 1 Distress Signals . | . . . . . . . . . . . . Times Spotted 128 | . 8 5 10 22 12 . 11 31 9 . 20 Peak Tracking Total 9 | . 4 3 3 7 4 . 7 6 5 . 9 Tactical Retreats 13 | . . 1 . 2 . . 2 6 1 . 1 Traps | -11 -10 -10 -9 -8 -8 -7 -7 -6 -6 -6 -5 ------- Run | Scr Mat Min Mat Mat Sto Fac DSF Fac Low Low Fac Traps Triggered 6 | . . . . 2 1 . 2 1 . . . Indirectly . | . . . . . . . . . . . . Trap Hack Attempts . | . . . . . . . . . . . . Triggered . | . . . . . . . . . . . . Disarmed 2 | . . . . . 2 . . . . . . Reprogrammed 5 | . . . 5 . . . . . . . . Reused 1 | . . . 1 . . . . . . . . Traps Extracted . | . . . . . . . . . . . . Installed . | . . . . . . . . . . . . Triggered 1 | . . . 1 . . . . . . . . Machines | -11 -10 -10 -9 -8 -8 -7 -7 -6 -6 -6 -5 ---------- Run | Scr Mat Min Mat Mat Sto Fac DSF Fac Low Low Fac Machines Disabled 36 | . . . 1 4 3 . . 8 . . 20 Max in Single Turn 6 | . . . . 2 . . . 6 . . 6 Machines Sabotaged . | . . . . . . . . . . . . Garrisons Compromised . | . . . . . . . . . . . . Overloaded Fab Kills . | . . . . . . . . . . . . Hacking | -11 -10 -10 -9 -8 -8 -7 -7 -6 -6 -6 -5 --------- Run | Scr Mat Min Mat Mat Sto Fac DSF Fac Low Low Fac Machines Accessed 32 | . 2 1 6 2 8 1 . 5 . . 7 Terminals 20 | . 2 . 6 2 6 1 . 2 . . 1 Fabricators 4 | . . . . . . . . 2 . . 2 Repair Stations 2 | . . . . . 1 . . . . . 1 Recycling Units 2 | . . . . . 1 . . . . . 1 Scanalyzers 2 | . . . . . . . . 1 . . 1 Garrison Access 1 | . . . . . . . . . . . 1 Total Hacks 88 | . 6 1 21 7 23 1 . 16 . . 13 Successful 54 | . 4 1 8 3 17 1 . 15 . . 5 Failed 34 | . 2 . 13 4 6 . . 1 . . 8 Catastrophic 4 | . . . 1 1 1 . . . . . 1 Database Lockouts . | . . . . . . . . . . . . Manual 16 | . . . 5 4 6 . . . . . 1 Terminals 63 | . 6 . 21 7 17 1 . 10 . . 1 Fabricators 5 | . . . . . . . . 3 . . 2 Repair Stations 7 | . . . . . 5 . . . . . 2 Recycling Units 3 | . . . . . 1 . . . . . 2 Scanalyzers 6 | . . . . . . . . 3 . . 3 Garrison Access 3 | . . . . . . . . . . . 3 Terminal Hacks 38 | . 4 1 8 3 11 1 . 10 . . . Record 13 | . 3 . 1 . 1 . . 8 . . . Part Schematic 1 | . . . . . . . . 1 . . . Prototype ID Bank 2 | . . . 1 . 1 . . . . . . Open Door 2 | . . 1 . . 1 . . . . . . Open DSF 2 | . . . . . . 1 . 1 . . . Branch Access Points 2 | . . . 1 . 1 . . . . . . Emergency Access Points 2 | . . . . 1 1 . . . . . . Alert Level 1 | . . . 1 . . . . . . . . Locate Traps 2 | . 1 . . . 1 . . . . . . Disarm Traps 2 | . . . . . 2 . . . . . . Reprogram Traps 1 | . . . 1 . . . . . . . . Investigation Status 1 | . . . 1 . . . . . . . . Assault Status 1 | . . . . . 1 . . . . . . Zone Layout 6 | . . . 2 2 2 . . . . . . Fabricator Hacks 2 | . . . . . . . . 2 . . . Load Schematic 1 | . . . . . . . . 1 . . . Build 1 | . . . . . . . . 1 . . . Repair Station Hacks 6 | . . . . . 5 . . . . . 1 Scan Component 3 | . . . . . 2 . . . . . 1 Repair 2 | . . . . . 2 . . . . . . Refit 1 | . . . . . 1 . . . . . . Recycling Unit Hacks 3 | . . . . . 1 . . . . . 2 Report Inventory 2 | . . . . . 1 . . . . . 1 Retrieve Components 1 | . . . . . . . . . . . 1 Scanalyzer 4 | . . . . . . . . 3 . . 1 Insert Component 3 | . . . . . . . . 2 . . 1 Analyze 1 | . . . . . . . . 1 . . . Garrison Access Hacks . | . . . . . . . . . . . . Unauthorized Hacks 1 | . . . . . . . . . . . 1 Terminals . | . . . . . . . . . . . . Fabricators 1 | . . . . . . . . . . . 1 Download 1 | . . . . . . . . . . . 1 Repair Stations . | . . . . . . . . . . . . Recycling Units . | . . . . . . . . . . . . Scanalyzers . | . . . . . . . . . . . . Garrison Access . | . . . . . . . . . . . . Data Cores Recovered 1 | . . . 1 . . . . . . . . Used . | . . . . . . . . . . . . Hacking Detections 26 | . 2 . 6 2 7 . . 4 . . 5 Full Trace Events 1 | . . . . . . . . 1 . . . Feedback Events . | . . . . . . . . . . . . Feedback Blocked . | . . . . . . . . . . . . Robot Schematics Acquired . | . . . . . . . . . . . . Robots Built . | . . . . . . . . . . . . Authchips . | . . . . . . . . . . . . Time . | . . . . . . . . . . . . Total Robot Build Rating . | . . . . . . . . . . . . Part Schematics Acquired 3 | . . . . . . . . 2 . . 1 Parts Built 1 | . . . . . . . . 1 . . . Authchips . | . . . . . . . . . . . . Time 53 | . . . . . . . . 53 . . . Total Part Build Rating 6 | . . . . . . . . 6 . . . Parts Repaired 2 | . . . . . 2 . . . . . . Time 76 | . . . . . 76 . . . . . . Parts Recycled . | . . . . . . . . . . . . Recycled Matter . | . . . . . . . . . . . . Retrieved Matter . | . . . . . . . . . . . . Retrieved Components 3 | . . . . . . . . . . . 3 Parts Scanalyzed 2 | . . . . . . . . 1 . . 1 Part Schematics Acquired 1 | . . . . . . . . 1 . . . Parts Damaged . | . . . . . . . . . . . . Bothacking | -11 -10 -10 -9 -8 -8 -7 -7 -6 -6 -6 -5 ------------ Run | Scr Mat Min Mat Mat Sto Fac DSF Fac Low Low Fac Used RIF Installer . | . . . . . . . . . . . . Robots Hacked 2 | . . . . . . . . . . . 2 Non-combat 1 | . . . . . . . . . . . 1 Combat 1 | . . . . . . . . . . . 1 Robot Hacks Applied 2 | . . . . . . . . . . . 2 parse_system 1 | . . . . . . . . . . . 1 no_distress 1 | . . . . . . . . . . . 1 Relay Couplers Released . | . . . . . . . . . . . . Fabnet Peak Effective % . | . . . . . . . . . . . . Robots Rewired . | . . . . . . . . . . . . Allies Hacked . | . . . . . . . . . . . . Hacks Repelled . | . . . . . . . . . . . . Allies | -11 -10 -10 -9 -8 -8 -7 -7 -6 -6 -6 -5 -------- Run | Scr Mat Min Mat Mat Sto Fac DSF Fac Low Low Fac Total Allies 17 | . . 5 . . 10 . . 2 . . . Largest Group 10 | . . 4 4 1 10 . . 1 . . . Highest-Rated Group 173 | . . 73 73 28 173 . . 12 . . . Highest-Rated Ally 31 | . . 31 31 28 29 . . 12 . . . Total Orders 2 | . . 1 . . 1 . . . . . . AID 2 | . . 1 . . 1 . . . . . . Ally Attacks 146 | . . 19 21 . 81 . . 25 . . . Total Damage 2642 | . . 242 298 . 1943 . . 159 . . . Kills 34 | . . 4 5 . 20 . . 5 . . . Allies Corrupted . | . . . . . . . . . . . . Allies Melted . | . . . . . . . . . . . . Intel | -11 -10 -10 -9 -8 -8 -7 -7 -6 -6 -6 -5 ------- Run | Scr Mat Min Mat Mat Sto Fac DSF Fac Low Low Fac Robot Analysis Total . | . . . . . . . . . . . . Derelict Logs Recovered 3 | . . 2 . . . . . . 1 . . Drone Launches 20 | . . . . . . . . 20 . . . Drone Recoveries 17 | . . . . . . . . 17 . . . Exploration | -11 -10 -10 -9 -8 -8 -7 -7 -6 -6 -6 -5 ------------- Run | Scr Mat Min Mat Mat Sto Fac DSF Fac Low Low Fac Turns Passed 3652 | 60 101 386 433 314 609 4 152 857 349 36 351 Spaces Moved 3723 | 52 90 317 368 237 325 3 94 586 845 105 701 Core 311 | 8 . . . 26 38 3 42 166 . . 28 Treads 52 | . . . . . . . 52 . . . . Legs 99 | . . . . 33 . . . 66 . . . Wheels 288 | 44 79 . 159 6 . . . . . . . Hover 1330 | . 11 317 209 172 287 . . 334 . . . Flight 1643 | . . . . . . . . 20 845 105 673 Fastest Speed 31 | 50 56 56 56 50 50 200 50 34 34 34 31 Average Speed 56 | 75 77 56 67 74 77 200 132 79 34 34 32 Slowest Speed 355 | 80 80 56 185 250 200 200 200 355 34 34 200 Overloaded Moves . | . . . . . . . . . . . . Propulsion Burnouts . | . . . . . . . . . . . . Robots Hopped 2 | . . . . . . . . . . . 2 Cave-ins Triggered . | . . . . . . . . . . . . Exploration Rate (%) 38 | 4 27 52 34 25 52 . 88 15 79 22 22 Regions Visited 11 Branch Regions 4 Pre-discovered Areas 2 | . . 2 . . . . . . . . . Known Exits Taken 1 | . . . . . . 1 . . . . . Unknown Exits Taken 9 | 1 1 1 1 1 1 . . 1 1 1 . Scrap Searched 4 | . . 1 . . . . . . 3 . . Spaces Dug . | . . . . . . . . . . . . Terrain Destroyed 186 | . . . . 39 . . . 50 . . 97 Melee . | . . . . . . . . . . . . Projectile 2 | . . . . . . . . . . . 2 AOE 184 | . . . . 39 . . . 50 . . 95 Terrain Rammed . | . . . . . . . . . . . . Walls Destroyed . | . . . . . . . . . . . . Machines Disabled . | . . . . . . . . . . . . Actions | -11 -10 -10 -9 -8 -8 -7 -7 -6 -6 -6 -5 --------- Run | Scr Mat Min Mat Mat Sto Fac DSF Fac Low Low Fac Total 5112 | 70 110 514 531 332 673 2 116 969 893 104 798 Wait 1070 | . 7 185 129 26 334 . 8 302 29 . 50 Move 3709 | 51 89 316 367 236 324 2 93 585 844 104 698 Hop 1 | . . . . . . . . . . . 1 Pick Up 62 | 9 3 3 7 6 1 . 4 24 1 . 4 Fast Attach 24 | 1 . . 1 1 4 . 2 3 5 . 7 Attach 62 | 7 1 . 3 13 . . 5 29 . . 4 Detach 18 | 1 1 . . 6 1 . . 8 . . 1 Swap 13 | . 3 1 5 . 1 . . 1 . . 2 Drop 29 | . 1 3 7 2 3 . . 5 2 . 6 Fire 121 | 1 5 6 12 42 5 . 4 9 12 . 25 Melee . | . . . . . . . . . . . . Ram 3 | . . . . . . . . 3 . . . Kick . | . . . . . . . . . . . . Crush . | . . . . . . . . . . . . Escape Stasis . | . . . . . . . . . . . . Rewire . | . . . . . . . . . . . . Trap . | . . . . . . . . . . . . Miscellaneous . | . . . . . . . . . . . . Route ------- -11/Scrapyard -10/Materials -10/Mines -9/Materials (discovered 2 exits: *Mat / Min) -8/Materials -8/Storage (discovered 2 exits: *Fac / Rec) -7/Factory (discovered 2 exits: Fac / DSF) -7/DSF -6/Factory -6/Lower Caves -6/Lower Caves -5/Factory History --------- Turn | Location | Event 6 | -11/Scrapyard | Discovered new exit (range 15) 61 | -11/Scrapyard | Entered Materials 143 | -10/Materials | Discovered new exit (range 16) 162 | -10/Materials | Entered Mines 204 | -10/Mines | Assisted by bots powering up and referring to "LRC-V3" 219 | -10/Mines | Found the Drone Emporium 221 | -10/Mines | Found Prototype Device 302 | -10/Mines | Build established: Mutant 340 | -10/Mines | Learned location of Zion (-6) 493 | -10/Mines | Learned location of Mines (-9) 529 | -10/Mines | Discovered new exit (range 6) 548 | -10/Mines | Entered Materials 548 | -9/Materials | Accompanied by 4 allies 548 | -9/Materials | Evolved 2 slots: Power x1, Utility x1 553 | -9/Materials | Led the pair of lost Derelicts to an unsafe place 553 | -9/Materials | Identified exit to Mines 627 | -9/Materials | Build established: Scavenger-Mutant 956 | -9/Materials | Discovered new exit (range 16) 981 | -9/Materials | Entered another Materials area 981 | -8/Materials | Accompanied by 1 ally 981 | -8/Materials | Evolved 2 slots: Utility x2 1082 | -8/Materials | Discovered new exit (range 16) 1295 | -8/Materials | Entered Storage 1350 | -8/Storage | Repaired Imp. Terrain Scanner 1389 | -8/Storage | Repaired Hpw. Shotgun 1415 | -8/Storage | Assisted by bots powering up and referring to "LRC-V3" 1483 | -8/Storage | Garrison activated, responded to threat 1556 | -8/Storage | Discovered new exit (range 11) 1721 | -8/Storage | Build established: Commander-Mutant 1832 | -8/Storage | Identified exit to Recycling 1878 | -8/Storage | Discovered new exit (range 14) 1890 | -8/Storage | Core integrity fell below 50% 1904 | -8/Storage | Entered Factory 1904 | -7/Factory | Evolved 2 slots: Propulsion x1, Utility x1 1908 | -7/Factory | Discovered new exit (range 8) 1908 | -7/Factory | Identified exit to DSF 1908 | -7/Factory | Entered DSF 1926 | -7/DSF | Lost 4 parts (1p2n1u) 1956 | -7/DSF | Additional patrols routed to DSF 2050 | -7/DSF | Core integrity fell below 50% 2050 | -7/DSF | Discovered new exit (range 16) 2060 | -7/DSF | Entered Factory 2060 | -6/Factory | Evolved 2 slots: Utility x2 2082 | -6/Factory | Lost 9 parts (1p1n3u4w) 2328 | -6/Factory | Build established: Mutant 2364 | -6/Factory | Fabricated Imp. Transmission Jammer (x1) 2590 | -6/Factory | Lost 5 parts (1p2n1u1w) 2660 | -6/Factory | Build established: Infiltrator-Mutant 2672 | -6/Factory | Lost 4 parts (1p1n2u) 2683 | -6/Factory | Identified Splice Drone Bay 2883 | -6/Factory | Discovered new exit (range 8) 2917 | -6/Factory | Entered Lower Caves 2933 | -6/Lower Caves | Spotted B-75 Beast 2986 | -6/Lower Caves | Learned Factory emergency access door positions 3149 | -6/Lower Caves | Lost 3 parts (2u1w) 3261 | -6/Lower Caves | Discovered new exit (range 15) 3266 | -6/Lower Caves | Entered another Lower Caves area 3297 | -6/Lower Caves | Discovered new exit (range 15) 3302 | -6/Lower Caves | Entered Factory 3302 | -5/Factory | Evolved 2 slots: Power x1, Propulsion x1 3617 | -5/Factory | Build established: Sprinter 3622 | -5/Factory | Destroyed 7 combat bots 3633 | -5/Factory | Core integrity fell below 50% 3638 | -5/Factory | Spotted B-75 Beast 3646 | -5/Factory | Core integrity fell below 20% 3653 | -5/Factory | Destroyed by P-70 Sage with High-powered Shock Rifle Last Messages --------------- 03630_ K-01 Serf collects debris. 03632_ Imp. Sensor Array destroyed. 03633_ Slug penetrates Wall. 03635_ P-70 Sage resets H-66 Slayer, system corruption cleaned. 03635_ U-05 Engineer builds a Wall. 03636_ Slug penetrates Matter Pump. 03639_ Acquired Mic. Fission Core. 03640_ U-05 Engineer builds a Wall. 03642_ Acquired Mic. Fission Core. 03643_ Imp. Component Analysis Suite destroyed. 03645_ U-05 Engineer builds a Wall. 03645_ S-27 Virus destroyed. 03647_ Matter Pump disabled. 03649_ Penetrated by Slug. 03649_ Terminal disabled. 03649_ Mic. Fission Core destroyed. 03650_ Matter Pump disabled. 03652_ Imp. Weapon Cycler destroyed. 03653_ Mic. Fission Core destroyed. [Achievement: Just Browsing] Map ----- +----------------------------------------------------+ | ?????????????????????????????????????????????????? | | ?????????????????????????????????????????????????? | | ?????????????????????????????????????????????????? | | ?????????????????????????????????????????????????? | | ?????????????????????????????????????????????????? | | ?????????????????????????????????????????????????? | | ?????????????????????????????????????????????????? | | ?????????????????????????????????????????????????? | | ?????????????????????????????????????????????????? | | ??????????????????????? ????????????????????????? | | ??????????????????????? ??????????????????????? | | ??????????????????????? ? ???????????????????? | | ??????????????????????# #??????????????????? | | ???????????????######## #??????????????????? | | ???????????????# #??????????????????? | | ????????######## #??????????????????? | | ???????? ###????????????????? | | ?????????# ] BB #????????????????? | | ?????????#==! BB ?????????????????? | | ?????????#=! """ """ ""% #??????????????????? | | ?????????#=! """ """ """ #??????????????????? | | ?????????# """ "%" %%% ######?????????????? | | ????????## ?????????????? | | ????????# """ |** ????????????? | | ? ?????# %%" | T" ^ ????????????? | | ????# "s% | @"" ????????????? | | ????# %phss % ????????????? | | ?#### %ps ?????????????? | | ! ##"""""+ ######### ???????????? | | # "#??# ##############???????????? | | # "##?# #????????????????????????? | | " " #?# #????????????????????????? | | ###"" #?# #????????????????????????? | | ?# " #?# #????????????????????????? | | ?# " #?# #????????????????????????? | | ?## " #?# #????????????????????????? | | ?# " % #?# #????????????????????????? | | ##""" #?? ?????????????????????????? | | " ! " #?? ?????????????????????????? | | ##""" ! "##?? ?????????????????????????? | | ##"""""" """"""#?????????????????????????????? | | # # "###?????????????????????????????? | | ###### ##???????????????????????????????? | | ?? ????????????????????????????????? | | ??? ???????????????????????????????? | | ???? ??????????????????????????????? | | ??? ?????????????????????????????? | | = ?????##????????????????????????????? | | ! ??????????????????????????????????? | | ?????????????????????????????????? | +----------------------------------------------------+ Best States ------------- Heat Dissipation 59 Coolant Potential 65 Energy Generation 33 Energy Capacity 405 Matter Stores 300 Matter Capacity 300 Sight Range 16 Robot Scan Range 16 Terrain Scan Range 16 Terrain Scan Density 85 ECM Strength 1 Jamming Range 14 Additional Mass Support 9 Base Temperature (-) 150 Armor Coverage 150 Resistance: TH 10 Weapon Cycling 20 Evasion (%) 63 Targeting Accuracy 5 Recoil Reduction 2 Offensive Hacking 10 Item Schematics ----------------- Imp. Transmission Jammer | -6/Factory | Hacked Airjet | -6/Factory | Scanalyzed Adv. Heavy Treads | -5/Factory | Downloaded Robot Schematics ------------------ None Fabricated ------------ Imp. Transmission Jammer | x1 | -6/Factory Alien Tech Used ----------------- None Achievements -------------- Error 47 Factory Defaults Just Browsing Release The Drones! Challenges ------------ None Game ------ Seed DynamicDefenseMallet Manual? 0 Play Time 01:59:18 Cumulative 26.8 hours Start 2022.03.25 @ 23:25:37 End 2022.03.26 @ 01:42:38 Sessions 1 Manual Loads 0 Difficulty Rogue Special Mode None Game No. 27 Rogue 27 Adventurer 0 Explorer 0 Win Type - Total 0 Types 0/0/0/0/0/0/0/0/0 Lore% 7 Gallery% 25 Achievement% 18 Wizard Run 0 Options --------- ASCII 0 Keyboard 0 Movement Mouse Keybinds 0 Fullscreen 1 Font 24/Smallcaps Map View 76x50 Tactical HUD 1 Map Filters NONE Filters NONE Steam 1 RUN: 37c4ae9d-162a-46dd-8c30-bafa7bf7684b